Cogmind - Beta 16 @@@ ROGUE MODE // 2025.11.13 @ 15:02:33 Player: Zane Result: Destroyed by E9-KCF(R) with Subdweller Beam Cannon Performance ------------- Evolutions (0) 0 Regions Visited (2) 400 Robots Destroyed (13) 65 Value Destroyed (370) 370 Prototype IDs (0) 0 Alien Tech Used (0) 0 Bonus (0) 0 TOTAL SCORE: 835 Bonus ------- None Cogmind --------- Core Integrity 0/250 Matter 300/300 Energy 96/125 System Corruption 0% Temperature Cool (15) Movement Rolling (110) Ox2 Location -10/Subcaves Parts ------- > --- POWER (1) -------- Light Ion Engine > --- PROPULSION (2) --- Wheel Subdweller Monowheel > --- UTILITY (2) ------ Small Storage Unit Seismic Detector > --- WEAPON (2) ------- Subdweller Laser Subdweller Beam Cannon > --- INVENTORY (8) ---- Subdweller Power Source Subdweller Power Source Light Treads Subdweller Monowheel Subdweller Beam Cannon Powered Cannon Mining Laser Peak State ------------ > --- POWER ------------ Light Ion Engine > --- PROPULSION ------- Subdweller Monowheel Subdweller Monowheel > --- UTILITY ---------- Small Storage Unit Seismic Detector > --- WEAPON ----------- Subdweller Laser Subdweller Beam Cannon > --- INVENTORY -------- Subdweller Power Source Subdweller Power Source Small Matter Pod Improved Terrain Scanner Powered Cannon Mining Laser [Rating: 13] Favorites ----------- Power Ion Engine Engine Ion Engine Propulsion Light Treads Treads Light Treads Wheel Subdweller Monowheel Utility Small Storage Unit Device Seismic Detector Storage Small Storage Unit Weapon Light Assault Rifle Energy Gun Subdweller Laser Energy Cannon Subdweller Beam Cannon Ballistic Gun Light Assault Rifle Build | -11 -10 -10 ------- Run | Yrd Mat Sub Slots Evolved . | . . . Power . | . . . Propulsion . | . . . Utility . | . . . Weapon . | . . . Parts Attached 18 | 9 1 8 Power 3 | 1 . 2 Engine 3 | 1 . 2 Core . | . . . Reactor . | . . . Propulsion 5 | 2 . 3 Treads 2 | 2 . . Leg . | . . . Wheel 3 | . . 3 Hover . | . . . Flight . | . . . Utility 4 | 3 1 . Device 3 | 2 1 . Storage 1 | 1 . . Processor . | . . . Hackware . | . . . Protection . | . . . Artifact . | . . . Weapon 6 | 3 . 3 Energy Gun 2 | 1 . 1 Energy Cannon 1 | . . 1 Ballistic Gun 3 | 2 . 1 Ballistic Cannon . | . . . Launcher . | . . . Special Weapon . | . . . Impact Weapon . | . . . Slashing Weapon . | . . . Piercing Weapon . | . . . Special Melee Weapon . | . . . Unidentified Prototypes . | . . . Parts Lost 9 | . 1 8 Power 2 | . . 2 Propulsion 2 | . . 2 Utility 1 | . 1 . Weapon 4 | . . 4 Highest Loss Streak 8 | . 1 8 To Critical Strikes . | . . . Average Backups 6 | 4 7 6 Power 1 | 1 2 1 Propulsion . | . 1 . Utility 1 | . 1 1 Weapon 2 | 1 2 2 Tool/Special . | . . . Unused Backups 9 | . 1 8 Power 3 | . 1 2 Propulsion 2 | . . 2 Utility 1 | . . 1 Weapon 3 | . . 3 Tool/Special . | . . . Average Slot Usage (%) 96 | . 96 97 Engine 13 | . 14 13 Treads 16 | . 28 5 Wheel 10 | . . 21 Device 12 | . 10 14 Storage 14 | . 14 14 Energy Gun 5 | . . 10 Energy Cannon 5 | . . 11 Ballistic Gun 16 | . 28 4 Peak Build Rating 13 | 9 8 13 Average Rating 9 | 6 7 11 On Entrance 5 | . 7 8 Avg Prop Armor Cover (%) 5 | . . 5 Naked Turns . | . . . Heaviest Build 21 | 14 14 21 Greatest Support 40 | 40 40 40 Greatest Overweight (x) 5 | . . 5 Average Overweight (x) . | . . . Largest Inventory Capacity 8 | 8 8 8 Average Capacity 7 | 6 8 8 Most Carried 8 | 6 8 8 Average Carried 7 | 4 7 7 Final Capacity 8 | 8 8 8 Final Carried 8 | 6 8 8 Class Distribution -------------------- 61% | Mutant 38% | Scavenger-Mutant Dominant Class ---------------- Mutant | -10/Materials Scavenger-Mutant | -10/Subcaves Resources | -11 -10 -10 ----------- Run | Yrd Mat Sub Matter Collected 517 | 271 42 204 Remotely . | . . . Salvage Created 468 | 48 141 279 Parts 33 | 5 10 18 Haulers Intercepted . | . . . Recyclers Shooed 1 | 1 . . Parts Field Recycled . | . . . Retrieved Matter . | . . . Parts Self-Destructed 12 | . . 12 Prevented . | . . . Parts Restored . | . . . Kills | -11 -10 -10 ------- Run | Yrd Mat Sub Combat Hostiles Destroyed 11 | . 5 6 Guns 9 | . 5 4 Cannons 2 | . . 2 Classes Destroyed 5 | 1 2 2 Tunneler 2 | 2 . . Swarmer 3 | . 3 . Grunt 2 | . 2 . Sentry 1 | . . 1 Subdweller 5 | . . 5 Best Kill Streak 3 | 1 3 3 Combat Bots Only 3 | . 3 3 Max Kills in Single Turn 1 | 1 1 1 Gunslinging . | . . . Exploded . | . . . Melee . | . . . Uniques/NPCs Destroyed . | . . . Combat | -11 -10 -10 -------- Run | Yrd Mat Sub Hostile Shots Fired 89 | . 42 47 Missed 19 | . 7 12 Hits 70 | . 35 35 Projectile 70 | . 35 35 Critical Strikes 3 | . 1 2 Damage Taken 1150 | . 356 794 Core 262 | . 64 198 Absorbed by Shields . | . . . Core Remaining (%) 100 | 100 . . Volleys Fired 58 | 5 26 27 Largest 2 | 2 2 2 Hottest 140 | 50 40 140 Shots Fired 103 | 8 52 43 Gun 97 | 8 52 37 Cannon 6 | . . 6 Launcher . | . . . Special . | . . . Kinetic 85 | 6 52 27 Thermal 18 | 2 . 16 Explosive . | . . . Electromagnetic . | . . . Robot Hit Streak 12 | 2 9 12 Robot Miss Streak 3 | 1 3 1 Penetration Max . | . . . Secondary Targets 2 | . . 2 Max Gunslinging Chain 1 | . . 1 Shots Hit Robots 74 | 5 33 36 Core Hits 28 | 2 11 15 Critical Kills . | . . . Critical Parts Destroyed . | . . . Critical Strikes . | . . . Melee Attacks . | . . . Impact . | . . . Slashing . | . . . Piercing . | . . . Sneak Attacks . | . . . Combat Hostiles . | . . . Follow-up Attacks . | . . . Damage Inflicted 877 | 59 385 433 Guns 762 | 59 382 321 Cannons 112 | . . 112 Explosions . | . . . Melee . | . . . Ramming 3 | . 3 . Kinetic 652 | 34 382 236 Thermal 222 | 25 . 197 Explosive . | . . . Electromagnetic . | . . . Impact . | . . . Slashing . | . . . Piercing . | . . . Highest Corruption . | . . . Average Corruption . | . . . Corruption Purged . | . . . Corruption Blocked . | . . . Overload Shots . | . . . Overflow Damage . | . . . Projectiles . | . . . Explosions . | . . . Melee . | . . . Knockbacks . | . . . Impact . | . . . Kinetic . | . . . Secondary . | . . . Self-Inflicted Damage . | . . . Shots . | . . . Rammed 1 | . 1 . Targets Rammed 1 | . 1 . Kicked . | . . . Crushed . | . . . Highest Temperature 275 | 10 46 275 Average Temperature 64 | 7 23 107 Received Heat Transfer 664 | . 126 538 Siege Activations . | . . . Martial Activations . | . . . Shielding Activations . | . . . Robots Disrupted . | . . . Combat Hostiles . | . . . Robots Corrupted . | . . . Combat Hostiles . | . . . Parts Fried . | . . . Impact Corruptions . | . . . Robots Melted . | . . . Combat Hostiles . | . . . Parts Melted 1 | . . 1 Heat Transferred 432 | 74 . 358 Parts Sabotaged . | . . . Parts Stolen . | . . . Parts Stripped . | . . . Power Chain Reactions . | . . . Alert | -11 -10 -10 ------- Run | Yrd Mat Sub Maximum Alert Level . | . . . Low Security (%) 100 | 100 100 . Level 1 . | . . . Level 2 . | . . . Level 3 . | . . . Level 4 . | . . . Level 5 . | . . . High Security . | . . . Max Security . | . . . Peak Influence 60 | 5 60 . Initial . | . . . Average 9 | . 11 . Influence Increases 155 | 10 125 20 Destroy 0b10 Robot/C 120 | . 100 20 Destroy 0b10 Robot/NC 10 | 10 . . Destroy Leader 20 | . 20 . Successful Hack 5 | . 5 . Influence Decreases 151 | 10 125 16 Time Decay 141 | 10 115 16 Lost Part 10 | . 10 . Squads Dispatched . | . . . Investigation . | . . . Extermination . | . . . Reinforcement . | . . . Assault . | . . . Garrison . | . . . Intercept . | . . . Searches Triggered . | . . . Construction Impeded . | . . . Haulers Reinforced . | . . . Active Scanning Responses . | . . . Cargo Convoy Interrupts . | . . . Stealth | -11 -10 -10 --------- Run | Yrd Mat Sub Distress Signals . | . . . Communications Jammed . | . . . Distress Signals . | . . . Times Spotted 15 | . 8 7 Peak Tracking Total 3 | . 3 3 Tactical Retreats . | . . . Traps | -11 -10 -10 ------- Run | Yrd Mat Sub Traps Triggered . | . . . Indirectly . | . . . Trap Hack Attempts . | . . . Triggered . | . . . Disarmed . | . . . Reprogrammed . | . . . Reused . | . . . Traps Extracted . | . . . Installed . | . . . Triggered . | . . . Machines | -11 -10 -10 ---------- Run | Yrd Mat Sub Machines Disabled . | . . . Max in Single Turn . | . . . Machines Repaired . | . . . Machines Dismantled . | . . . Machines Sabotaged . | . . . Overloaded Fab Kills . | . . . Hacking | -11 -10 -10 --------- Run | Yrd Mat Sub Machines Accessed 1 | . 1 . Terminals 1 | . 1 . Fabricators . | . . . Repair Stations . | . . . Recycling Units . | . . . Scanalyzers . | . . . Garrison Access . | . . . Total Hacks 3 | . 3 . Successful 1 | . 1 . Failed 2 | . 2 . Catastrophic . | . . . Database Lockouts . | . . . Manual 3 | . 3 . Terminals 3 | . 3 . Fabricators . | . . . Repair Stations . | . . . Recycling Units . | . . . Scanalyzers . | . . . Garrison Access . | . . . Terminal Hacks . | . . . Fabricator Hacks . | . . . Repair Station Hacks . | . . . Recycling Unit Hacks . | . . . Scanalyzer . | . . . Garrison Access Hacks . | . . . Unauthorized Hacks 1 | . 1 . Terminals 1 | . 1 . Botnet 1 | . 1 . Fabricators . | . . . Repair Stations . | . . . Recycling Units . | . . . Scanalyzers . | . . . Garrison Access . | . . . Data Cores Recovered . | . . . Used . | . . . Hacking Detections 1 | . 1 . Full Trace Events . | . . . Feedback Events . | . . . Feedback Blocked . | . . . Robot Schematics Acquired . | . . . Robots Built . | . . . Authchips . | . . . Time . | . . . Total Robot Build Rating . | . . . Part Schematics Acquired . | . . . Parts Built . | . . . Authchips . | . . . Time . | . . . Total Part Build Rating . | . . . Part Studies Acquired . | . . . Parts Repaired . | . . . Time . | . . . Parts Recycled . | . . . Recycled Matter . | . . . Retrieved Matter . | . . . Retrieved Components . | . . . Parts Scanalyzed . | . . . Part Schematics Acquired . | . . . Parts Damaged . | . . . Bothacking | -11 -10 -10 ------------ Run | Yrd Mat Sub Used RIF Installer . | . . . Robots Hacked . | . . . Non-combat . | . . . Combat . | . . . Robot Hacks Applied . | . . . Relay Couplers Released . | . . . Fabnet Peak Effective % . | . . . Robots Rewired . | . . . Allies Hacked . | . . . Hacks Repelled . | . . . Allies | -11 -10 -10 -------- Run | Yrd Mat Sub Total Allies . | . . . Largest Group . | . . . Highest-Rated Group . | . . . Highest-Rated Ally . | . . . Total Orders . | . . . Ally Attacks . | . . . Total Damage . | . . . Kills . | . . . Allies Corrupted . | . . . Allies Melted . | . . . Intel | -11 -10 -10 ------- Run | Yrd Mat Sub Active Infowar (turns) 1091 | 78 435 578 Terrain 34 | 34 . . Seismic 1057 | 44 435 578 Robot Analysis Total . | . . . Derelict Logs Recovered . | . . . Drone Launches . | . . . Drone Recoveries . | . . . Exploration | -11 -10 -10 ------------- Run | Yrd Mat Sub Turns Passed 1273 | 134 561 578 Spaces Moved 722 | 67 242 413 Core 7 | 4 . 3 Treads 332 | 63 242 27 Legs . | . . . Wheels 383 | . . 383 Hover . | . . . Flight . | . . . Fastest Speed 50 | 50 160 95 Average Speed 133 | 153 160 114 Slowest Speed 300 | 160 160 300 Overloaded Moves . | . . . Propulsion Burnouts . | . . . Robots Hopped . | . . . Potential Cave-ins . | . . . Cave-ins Triggered . | . . . Exploration Rate (%) 28 | 6 47 31 Regions Visited 2 Branch Regions 1 Pre-discovered Areas . | . . . Known Exits Taken . | . . . Unknown Exits Taken 2 | 1 1 . Scrap Searched . | . . . Spaces Dug . | . . . Terrain Destroyed . | . . . Melee . | . . . Projectile . | . . . AOE . | . . . Terrain Rammed . | . . . Walls Destroyed . | . . . Machines Disabled . | . . . Actions | -11 -10 -10 --------- Run | Yrd Mat Sub Total 936 | 86 369 481 Wait 117 | . 96 21 Move 720 | 66 241 413 Hop . | . . . Pick Up 17 | 6 3 8 Fast Attach 10 | 7 1 2 Attach 6 | . . 6 Detach . | . . . Swap 3 | 2 . 1 Drop 4 | . 1 3 Fire 58 | 5 26 27 Melee . | . . . Ram . | . . . Kick . | . . . Crush 1 | . 1 . Escape Stasis . | . . . Rewire . | . . . Trap . | . . . Miscellaneous . | . . . Route ------- -11/Scrapyard -10/Materials (discovered 3 exits: [*Mat] / [*Min] / [*Sub]) -10/Subcaves History --------- Turn | Location | Event 24 | -11/Scrapyard | Discovered new exit (range 15) 135 | -11/Scrapyard | Entered Materials 224 | -10/Materials | Discovered new exit (range 7) 300 | -10/Materials | Discovered new exit (range 10) 307 | -10/Materials | Build established: Mutant 679 | -10/Materials | Discovered new exit (range 3) 696 | -10/Materials | Entered Subcaves 697 | -10/Subcaves | Approached by a straggling Scientist 756 | -10/Subcaves | A Subdweller sparked back to life 756 | -10/Subcaves | A Subdweller sparked back to life 786 | -10/Subcaves | Core integrity fell below 50% 807 | -10/Subcaves | Core integrity fell below 20% 812 | -10/Subcaves | Found Prototype Energy Cannon 831 | -10/Subcaves | Lost 8 parts (2p2n4w) 926 | -10/Subcaves | Shifting Twisted Machinery released Sub. Monowheel 928 | -10/Subcaves | Shifting Twisted Machinery released Battle Cannon 1086 | -10/Subcaves | Build established: Scavenger-Mutant 1274 | -10/Subcaves | Destroyed by E9-KCF(R) with Subdweller Beam Cannon Last Messages --------------- 00851_ Subatomizers dissect the Sub. Beam Cannon. Sub. Monowheel falls loose from the Twisted Machinery. Battle Cannon falls loose from the Twisted Machinery. 01153_ Sub. Monowheel shoots sparks and powers down. 01191_ Critical hit (Burn: +37). 01216_ Y-45 Defender destroyed. 01222_ Hvy. Assault Rifle fries itself beyond repair. 01224_ Lgt. Armor Plating fries itself beyond repair. 01229_ Dropped Sml. Matter Pod. 01229_ Acquired Lgt. Treads. 01230_ Acquired 10 matter. 01232_ Imp. Ion Engine fries itself beyond repair. 01272_ E9-KCF(R): "SUBMAD!" Map ----- +----------------------------------------------------+ | ?????????????????????????????????????????????????? | | ?????????????????????????????????????????????????? | | ?????????????????????????????????????????????????? | | ?????????????????????????????????????????????????? | | ?????????????????????????????????????????????????? | | ?????????????????????????????????????????????????? | | ?????????????????????????????????????????????????? | | ?????????????????????????????????????????????????? | | ?????????????????????????????????????????????????? | | ?????????????????????????????????????????????????? | | ?????????????????????????????????????????????????? | | ?????????????????????????????????????????????????? | | ???????????????????????????####??????????????????? | | ??????????????????????????##""##?????????????????? | | ??????????????????????????"" " #?????????????????? | | ???????????????????????###"" " ??????????????????? | | ????????????######?????#" """ #??????????????????? | | ????????????# #?????#""##""#??????????????????? | | ????????????# ##????# ""*%=##????????????????## | | ????????????# #????# "" #????????????????# | | ????????????# ##????# " "#????????????????# | | ????????????# ##????#"" #????????????????# | | ????????????# ##???#" #??????????????# | | ????????????# ##??# #??????????????# | | ????????????# ##?# ##????????????? ? | | ????????????## ### ####@ #????????????# ??? | | ?????????????##??# #### ##???????????# ???? | | ?????????????????## #### #???????????#"????? | | ??????????????????## ####R #?????????????????? | | ???????????????????## ## #?????????????????? | | ????????????????????### % ##????????????????? | | ??????????# ????##### ! #?????????????##?? | | ?????????? ???## ## #?????????????# ## | | ????????? ?## #?????????????# # | | ????????? ## ##?????????????# | | ?????????? #???????????????# | | ????????? ##??????????????# | | ?????????? #??????????????# | | ????????????? ## ## #??????????????# | | ???????????????# ### #??????????????# # | | ???????????????# #??###??????????????### | | ???????????????### ####?????????????????????? | | ?????????????????# #???????????????????##???# | | ???????????????### ##??????????????????"#??## | | ?????????????### #?????????????????# #??# | | ?????????????# #????????????????? ????? | | ????????????# ## ##?????##?????###? #????? | | ????????????# ### #???## ###???# ## ##??## | | ????????????# ??# ##??## #???# " "##?# | | ????????????## #??# ##??# #????# ### | +----------------------------------------------------+ Best States ------------- Heat Dissipation 25 Energy Generation 10 Energy Capacity 250 Matter Stores 300 Matter Capacity 300 Sight Range 16 Terrain Scan Range 16 Terrain Scan Density 10 Evasion (%) 41 Recoil Reduction 2 Item Schematics ----------------- None Robot Schematics ------------------ None Fabricated ------------ Nothing Repaired ---------- Nothing Studied --------- None Alien Tech Used ----------------- None Achievements -------------- None Challenges ------------ None Game ------ Seed LightpackTerrorCalibrator Manual? 0 Play Time 00:10:08 Cumulative 47.4 hours Start 2025.11.13 @ 14:53:08 End 2025.11.13 @ 15:02:33 Sessions 1 Manual Loads 0 Difficulty Rogue Special Mode None Game No. 62 Rogue 62 Adventurer 0 Explorer 0 Win Type - Total 0 Types 0/0/0/0/0/0/0/0/0/0 Lore% 46 Gallery% 37 Achievement% 24 Wizard Run 0 Options --------- Layout 1 ASCII 0 Keyboard 0 Movement Numpad Keybinds 0 Fullscreen 2 Font 24/Smallcaps Map View 50x35 Zoom Use 0% Tactical HUD 1 Map Filters NONE Filters NONE Steam 1 RUN: 27ff8fcd-5ff4-4771-a205-79f52aa13f06